[Event "1st Serbian League 2022"]
[Site "Vrnjacka Banja"]
[Date "2022.09.26"]
[Round "7.27"]
[White "Stankovic, Boris"]
[Black "Nenezic, Marko"]
[Result "1/2-1/2"]
[ECO "B33"]
[WhiteElo "2208"]
[BlackElo "2528"]
[Annotator "TA"]
[PlyCount "142"]
[EventDate "2022.09.20"]
[EventType "team-tourn"]
[EventCountry "SRB"]
[SourceTitle "playchess.com"]
[Source "ChessBase"]
[SourceQuality "1"]
[TimeControl "40/5400+30:1800+30"]

{[%evp 16,142,33,26,47,8,13,9,8,10,17,0,0,-71,-79,-63,-38,-47,-1,-2,267,258,239,0,-8,-10,-22,-18,607,207,211,187,385,7,0,0,0,18,17,0,0,-144,-141,-155,-140,-155,-146,-175,-170,-170,-167,-163,-164,-204,-155,-253,-234,-281,-219,-209,-146,-156,-142,-132,-150,-144,-152,-418,-405,-431,-431,-428,-428,-437,-437,-437,-437,-437,-434,-437,-366,-431,-427,-431,-431,-438,-438,-438,-431,-436,-431,-431,-431,-407,-396,-414,-414,-452,-452,-445,-445,-452,-445,-460,-458,-458,-458,-456,-423,-416,-407,-407,-407,-408,-408,-408,0,-407,-402,-397,-396,-389,-382,-348,0,0,0,0,0]} 1. e4 {[%emt 0:00:02]} c5 {[%emt 0:00:26]} 2. Nf3 {[%emt 0:00:04]} Nc6 {[%emt 0:00:18]} 3. d4 {[%emt 0:00:05]} cxd4 {[%emt 0:00:28]} 4. Nxd4 {[%emt 0:00:06]} Qb6 {[%emt 0:00:30]} 5. Nb3 {[%emt 0:03:50]} Nf6 {[%emt 0:00:24]} 6. Nc3 {[%emt 0:01:18]} e6 {[%emt 0:00:29]} 7. Bd3 {[%emt 0:05:11]} a6 {[%emt 0:02:07]} 8. O-O {[%emt 0:01:04]} Qc7 {[%emt 0:00:25]} 9. f4 {[%emt 0:13:30]} d6 {[%emt 0:02:33] Prevents e5. B33: Sicilian: Pelikan and Sveshnikov Variations.} 10. Kh1 {[%emt 0:02:29]} b5 {[%emt 0:01:09]} 11. Qf3 {[%emt 0:06:27][%cal Oe4e5]} Bb7 {[%emt 0:00:58]} 12. Bd2 {[%emt 0:02:12]} g6 {[%emt 0:06:32]} 13. Rae1 {[%emt 0:03:54]} Bg7 {[%emt 0:00:56] [#]} 14. Bxb5 $146 {[%emt 0:19:36]} ({Predecessor:} 14. Qh3 O-O 15. f5 Rae8 16. Bg5 b4 17. Nd1 exf5 18. exf5 Rxe1 19. Rxe1 Ne5 20. Qh4 Nxd3 21. cxd3 {0-1 (35) Klundt,K (2383)-Kurajica,B (2532) Rijeka 2011}) 14... axb5 $17 {[%emt 0:35:27]} 15. Nxb5 {[%emt 0:00:01]} Qd7 {[%emt 0:01:28] aiming for ...0-0.} (15... Qb8 $5 {[%cal Re8g8]} 16. e5 O-O 17. Nxd6 (17. exf6 Bxf6 18. Qh3 Bxb2 $17) 17... Nd7 $17) 16. e5 {[%emt 0:01:07][%mdl 64] Overworked Piece} dxe5 {[%emt 0:00:07]} (16... O-O $15 17. Nxd6 (17. exf6 Bxf6 18. Qd3 Rfd8 $15) 17... Nxe5 18. Qxb7 Qxb7 19. Nxb7 Nc4) 17. Nc5 {[%emt 0:05:33]} Qxd2 {[%emt 0:03:24][%mdl 8192]} (17... e4 $1 $11 {and Black has nothing to worry.} 18. Qc3 Nh5) 18. Nc7+ $1 $18 {[%emt 0:05:44]} Kd8 {[%emt 0:09:43]} 19. Nxa8 {[%emt 0:01:54]} (19. Rd1 $1 $18 Qxd1 20. N7xe6+ Ke7 21. Rxd1 (21. Qxd1 Ba6 $16) 21... fxe6 22. Nxb7) 19... Qb4 $1 $11 {[%emt 0:02:27]} (19... Bxa8 $2 20. Rd1 Qd5 21. Rxd5+ Nxd5 22. c4 $18) 20. Nxb7+ {[%emt 0:06:25]} Qxb7 {[%emt 0:00:06]} 21. fxe5 {[%emt 0:00:09]} Ne8 {[%emt 0:05:40][%mdl 8192] [#]} (21... Nd7 $11 22. Qxf7 Bxe5) 22. Rd1+ $2 {[%emt 0:02:41]} (22. Re3 $1) 22... Kc8 $18 {[%emt 0:00:07]} 23. Qxf7 {[%emt 0:00:47] Really sharp!} Kb8 $2 {[%emt 0:04:58] [#]} (23... Qxf7 24. Rxf7 Bxe5) 24. Rd3 $2 {[%emt 0:05:15]} Rf8 $1 $36 {[%emt 0:10:46][%mdl 2048] Black is more active.} (24... Kxa8 25. Ra3+ Na7 26. Qxb7+ Kxb7 27. Rf7+ Kc6 28. Ra6+ (28. Rfxa7 Bxe5 29. R3a6+ Kd5 $16) 28... Kd5 29. Rfxa7 (29. Raxa7 Bxe5 30. Rf2 Nc7 $16) 29... Bxe5 30. Rd7+ Nd6 31. b3 $16) 25. Qxb7+ {[%emt 0:02:59]} Kxb7 {[%emt 0:01:23][%cal Rf8f1]} 26. Rxf8 {[%emt 0:02:12]} Bxf8 {[%emt 0:00:01]} 27. Rd7+ {[%emt 0:00:17]} (27. Rf3 Bg7 28. b4 Kxa8) 27... Kxa8 {[%emt 0:00:11]} 28. Rf7 {[%emt 0:00:12] [#]} (28. b4 $1 $11) 28... Bh6 $1 $17 {[%emt 0:03:21]} 29. a4 {[%emt 0:02:25]} Kb8 {[%emt 0:01:18]} 30. Rxh7 {[%emt 0:01:31]} Bg7 {[%emt 0:00:08]} 31. h4 {[%emt 0:01:05]} Nxe5 {[%emt 0:00:32] Hoping for ...Nd7.} 32. h5 {[%emt 0:01:07]} gxh5 {[%emt 0:00:23]} 33. Rxh5 {[%emt 0:00:08]} Kb7 {[%emt 0:01:48]} 34. b4 {[%emt 0:00:23]} Kb6 {[%emt 0:02:05]} 35. Rh4 {[%emt 0:01:54]} (35. Rg5 $17) 35... Nd6 {[%emt 0:01:38]} 36. Rh7 {[%emt 0:01:16]} Bf8 {[%emt 0:01:38]} 37. Rh8 {[%emt 0:00:29]} Be7 {[%emt 0:00:35]} 38. Rh6 {[%emt 0:00:20]} Nec4 {[%emt 0:01:40]} 39. Rxe6 {[%emt 0:00:11]} Bg5 {[%emt 0:01:51]} 40. g4 {[%emt 0:00:27]} Bd2 {[%emt 0:00:00]} 41. b5 $2 {[%emt 0:32:16]} (41. Kg2 $17) 41... Ka5 $19 {[%emt 0:29:44]} 42. Kg2 {[%emt 0:00:38]} Kxa4 {[%emt 0:00:23]} 43. b6 {[%emt 0:00:19]} Kb5 {[%emt 0:00:36]} 44. Kh3 {[%emt 0:00:00]} Kxb6 {[%emt 0:00:00]} 45. Kh4 {[%emt 0:00:00]} Kc6 {[%emt 0:00:00]} 46. Re2 {[%emt 0:00:00]} Bc3 {[%emt 0:00:00]} 47. g5 {[%emt 0:00:00]} Kd7 {[%emt 0:00:00]} 48. g6 {[%emt 0:00:00]} Bg7 {[%emt 0:00:00]} 49. Kh5 {[%emt 0:00:00]} Ne5 {[%emt 0:00:00]} 50. c3 {[%emt 0:00:00]} Ke6 {[%emt 0:00:00]} 51. Ra2 {[%emt 0:00:00]} Nd7 {[%emt 0:00:00]} 52. Ra6 {[%emt 0:00:00]} Nf6+ {[%emt 0:00:00]} 53. Kh4 {[%emt 0:00:00]} Nfe4 {[%emt 0:00:00]} 54. c4 {[%emt 0:00:00]} Bd4 {[%emt 0:00:00]} 55. Kh5 {[%emt 0:00:00]} Be3 {[%emt 0:00:00]} 56. Kh4 {[%emt 0:00:16]} Kf6 {[%emt 0:01:31]} 57. Rc6 {[%emt 0:01:13][%cal Oc4c5]} Kg7 {[%emt 0:00:38]} 58. c5 {[%emt 0:02:39]} Nf5+ {[%emt 0:00:18]} (58... Nc4 $2 59. Re6 Bf2+ 60. Kh5 Nf6+ 61. Kg5 $17) 59. Kg4 {[%emt 0:01:11]} Nd4 {[%emt 0:00:15]} 60. Ra6 {[%emt 0:00:53]} Nf6+ {[%emt 0:01:36]} 61. Kg3 {[%emt 0:00:36]} Nf5+ {[%emt 0:00:18]} 62. Kf3 {[%emt 0:00:20]} Bg1 {[%emt 0:03:23]} 63. c6 {[%emt 0:00:22]} Ne8 {[%emt 0:00:09]} ({Inferior is} 63... Bh2 64. Kg2 $15) 64. Ra1 {[%emt 0:01:11]} Bh2 {[%emt 0:00:20]} 65. Ra2 {[%emt 0:00:30]} Bg1 {[%emt 0:02:08]} 66. Ra1 $1 {[%emt 0:00:02]} Bd4 {[%emt 0:00:50]} 67. Ra4 {[%emt 0:01:28][%cal Oc6c7]} Bc5 {[%emt 0:00:39]} 68. Ra5 {[%emt 0:01:02]} Nd4+ {[%emt 0:00:37]} 69. Ke4 {[%emt 0:01:01]} Nf6+ $2 {[%emt 0:00:38]} (69... Kxg6 70. Rxc5 Ne6 71. Re5 $11) (69... Ne6 $19 {Threatens to win with ...N8c7.} 70. Rxc5 Nxc5+ 71. Kf5 Nc7) 70. Kd3 $1 $11 {[%emt 0:00:22]} Bb6 {[%emt 0:00:24]} (70... Kxg6 $2 71. c7 (71. Rxc5 Nxc6 72. Rxc6 Kf5 $14) 71... Nc6 72. c8=Q $18 (72. Rxc5 Ne7 $14)) 71. Ra6 {[%emt 0:00:49]} Nxc6 {[%emt 0:01:33] Never resign too early!  Weighted Error Value: White=0.42/Black=0.33} 1/2-1/2

[Event "1st Serbian League 2022"]
[Site "Vrnjacka Banja"]
[Date "2022.09.26"]
[Round "7.28"]
[White "Djukic, Nikola"]
[Black "Radojicic, Aleksandar M"]
[Result "1-0"]
[ECO "B42"]
[WhiteElo "2536"]
[BlackElo "2192"]
[Annotator "TA"]
[PlyCount "143"]
[EventDate "2022.09.20"]
[EventType "team-tourn"]
[EventCountry "SRB"]
[SourceTitle "playchess.com"]
[Source "ChessBase"]
[SourceQuality "1"]
[TimeControl "40/5400+30:1800+30"]

{[%evp 17,143,29,33,27,35,36,84,47,84,73,102,95,98,102,82,47,65,57,83,72,65,64,105,97,81,64,183,176,254,254,238,245,291,292,300,295,294,230,286,277,289,283,290,288,314,301,338,338,328,317,548,550,532,411,561,555,574,589,547,547,616,607,670,656,860,721,721,717,712,712,656,637,756,732,1072,778,810,802,793,755,940,711,918,707,793,789,761,742,1154,1093,1806,1585,29963,29967,29967,29969,29971,29972,29971,29972,29967,29970,29964,29971,29971,29969,29974,29975,29976,29977,29977,29979,29979,1966,29979,29981,29981,29982,29982,29983,29990,29991,29991,29984,29984,29985,29996,2116]} 1. e4 {[%emt 0:00:04]} c5 {[%emt 0:00:04]} 2. Nf3 {[%emt 0:00:06]} e6 {[%emt 0:00:06]} 3. d4 {[%emt 0:00:06]} cxd4 {[%emt 0:00:04]} 4. Nxd4 {[%emt 0:00:06]} a6 {[%emt 0:00:03]} 5. Bd3 {[%emt 0:00:10]} Bc5 {[%emt 0:00:16]} 6. Nb3 {[%emt 0:00:10]} Ba7 {[%emt 0:00:05]} 7. Qe2 {[%emt 0:00:06]} d6 {[%emt 0:11:37]} 8. Be3 {[%emt 0:00:24]} Nc6 {[%emt 0:06:23]} 9. O-O $1 {[%emt 0:05:05] 9.0-0 is better than 9.Nc3.} Nf6 {[%emt 0:04:08]} 10. c4 {[%emt 0:00:16] B42: Sicilian: Kan Variation: 5 Bd3.} O-O {[%emt 0:08:16]} 11. Nc3 {[%emt 0:00:18]} d5 {[%emt 0:08:42] [#]} (11... Bxe3 $14 {should be considered.} 12. Qxe3 b6) 12. Bxa7 $146 {[%emt 0:04:24] Bc5 is the strong threat. White is better.} (12. exd5 {with more complications.} Bxe3 13. fxe3 exd5 14. cxd5 Bg4 15. Qd2) ({Predecessor:} 12. cxd5 exd5 13. exd5 Bg4 14. Qd2 Nb4 15. Bg5 Kh8 16. h3 Bh5 17. Bxf6 Qxf6 18. Ne4 {1-0 (31) Gergacz,A (2389)-Juhasz,B (2205) Eger 2009}) 12... dxe4 {[%emt 0:09:53] [#]} 13. Nxe4 {[%emt 0:01:01]} Rxa7 {[%emt 0:06:52]} 14. Rad1 {[%emt 0:10:07]} Nxe4 {[%emt 0:13:30]} 15. Bxe4 {[%emt 0:03:58]} Qc7 {[%emt 0:00:16]} 16. Rd2 {[%emt 0:09:13]} Ne5 {[%emt 0:10:08]} 17. Rc1 {[%emt 0:12:30]} ({Much worse is} 17. Qh5 f5 18. Bd3 Nxd3 19. Rxd3 a5 $11) 17... f5 {[%emt 0:01:29]} 18. Bf3 {[%emt 0:10:11]} Nxf3+ {[%emt 0:05:35]} 19. Qxf3 {[%emt 0:00:07]} b6 {[%emt 0:02:59]} 20. c5 {[%emt 0:05:11]} bxc5 {[%emt 0:00:11]} 21. Nxc5 {[%emt 0:01:15]} Bb7 {[%emt 0:04:02]} (21... Rd8 $14 22. Rxd8+ Qxd8) 22. Qd1 $1 $18 {[%emt 0:02:22]} Qc6 {[%emt 0:03:11] [#]} (22... Ba8 {was called for.} 23. Nxe6 Qb7) 23. f3 $1 {[%emt 0:01:39] Active counter play!} Bc8 {[%emt 0:00:33] [#]} 24. Nd7 {[%emt 0:11:04][%mdl 512] Against Qb6+} Bxd7 {[%emt 0:00:50]} (24... Qxd7 25. Rxd7) 25. Rxc6 {[%emt 0:00:07]} Bxc6 {[%emt 0:00:01]} 26. Rd8 {[%emt 0:00:36]} Bd5 {[%emt 0:01:27] [#]} 27. Rxf8+ {[%emt 0:00:17]} Kxf8 {[%emt 0:00:01][%mdl 4096] Endgame KQ-KRB} 28. Qc2 {[%emt 0:00:26]} Kf7 {[%emt 0:01:49]} 29. b4 {[%emt 0:00:49]} Rb7 {[%emt 0:01:18]} 30. a3 {[%emt 0:00:17]} h6 {[%emt 0:00:44]} 31. Qc5 {[%emt 0:00:38]} Rd7 {[%emt 0:00:45]} 32. Qc8 {[%emt 0:00:47]} Rb7 {[%emt 0:00:31]} 33. Kf2 {[%emt 0:01:23]} a5 $2 {[%emt 0:00:32]} (33... Ra7 34. Qc5 Re7) 34. b5 {[%emt 0:01:40]} a4 {[%emt 0:00:32]} 35. b6 {[%emt 0:01:42]} Ke7 {[%emt 0:00:22]} 36. Qc5+ {[%emt 0:00:21]} Kf7 {[%emt 0:00:39]} 37. Ke3 {[%emt 0:01:22]} g5 {[%emt 0:00:21]} 38. g3 {[%emt 0:03:49]} Kg6 {[%emt 0:00:41]} 39. f4 {[%emt 0:01:11]} Kf7 {[%emt 0:00:28]} 40. Qb5 {[%emt 0:02:48]} Kg7 {[%emt 0:00:35]} 41. Kd4 {[%emt 0:31:01]} Rb8 {[%emt 0:05:40]} 42. Qd7+ {[%emt 0:00:00]} Kg6 {[%emt 0:01:06]} 43. Qc7 {[%emt 0:00:00]} Rb7 {[%emt 0:01:14]} 44. Qd8 {[%emt 0:00:00]} gxf4 {[%emt 0:06:30]} 45. gxf4 {[%emt 0:00:00]} Kh5 {[%emt 0:07:08]} 46. h3 {[%emt 0:00:00]} Rg7 {[%emt 0:03:20]} 47. Qe8+ {[%emt 0:00:00]} Kh4 {[%emt 0:00:18]} 48. Qh8 {[%emt 0:00:00]} Rg2 {[%emt 0:01:40]} 49. Qxh6+ {[%emt 0:00:00]} Kg3 {[%emt 0:00:03]} 50. Kc5 {[%emt 0:00:00]} Rc2+ {[%emt 0:02:06]} 51. Kb5 {[%emt 0:00:00]} Rb2+ {[%emt 0:01:21]} 52. Ka5 {[%emt 0:00:00] Strongly threatening Qg7+.} Rb3 {[%emt 0:00:19]} 53. h4 {[%emt 0:02:46]} Rxa3 {[%emt 0:00:38]} 54. h5 {[%emt 0:00:35] White threatens Qg7+ and mate.} Rb3 {[%emt 0:01:28]} 55. Qg7+ {[%emt 0:00:19]} Kxf4 {[%emt 0:00:43]} 56. h6 {[%emt 0:01:26]} a3 {[%emt 0:00:07]} 57. h7 {[%emt 0:00:48]} Rh3 {[%emt 0:01:16]} 58. h8=Q {[%emt 0:02:03]} Rxh8 {[%emt 0:00:03]} 59. Qxh8 {[%emt 0:00:05]} a2 {[%emt 0:00:02]} 60. Kb4 {[%emt 0:01:37]} Ke3 {[%emt 0:03:32]} 61. Qc3+ {[%emt 0:00:20]} Ke4 {[%emt 0:00:31]} 62. Qe1+ {[%emt 0:01:28]} Kd3 {[%emt 0:01:04]} 63. Qd1+ {[%emt 0:01:28]} Ke3 {[%emt 0:00:29]} 64. Kc3 {[%emt 0:00:43]} f4 {[%emt 0:00:16]} 65. Qe1+ {[%emt 0:02:23]} Kf3 {[%emt 0:00:08]} 66. Kb2 {[%emt 0:01:17] White mates.} Kg2 {[%emt 0:01:16]} 67. Qb4 {[%emt 0:01:30]} f3 {[%emt 0:00:26]} 68. b7 {[%emt 0:00:05]} f2 {[%emt 0:00:18]} 69. Qg4+ {[%emt 0:00:18]} Kh1 {[%emt 0:00:42]} 70. Qh3+ {[%emt 0:01:08]} Kg1 {[%emt 0:00:03]} 71. b8=Q {[%emt 0:00:29][%csl Gh3][%cal Rb8h2]} Bg2 {[%emt 0:01:24]} 72. Qbh2+ {[%emt 0:00:09] Weighted Error Value: White=0.08 (flawless) /Black=0.45} 1-0

[Event "1st Serbian League 2022"]
[Site "Vrnjacka Banja"]
[Date "2022.09.26"]
[Round "7.29"]
[White "Velikic, Adela"]
[Black "Strikovic, Aleksa"]
[Result "0-1"]
[ECO "B07"]
[WhiteElo "2272"]
[BlackElo "2491"]
[Annotator "TA"]
[PlyCount "138"]
[EventDate "2022.09.20"]
[EventType "team-tourn"]
[EventCountry "SRB"]
[SourceTitle "playchess.com"]
[Source "ChessBase"]
[SourceQuality "1"]
[TimeControl "40/5400+30:1800+30"]

{[%evp 16,138,55,54,53,49,65,46,67,62,62,55,60,34,35,34,33,38,50,2,26,4,14,6,10,6,20,21,20,0,0,-12,0,0,0,-118,0,0,0,0,0,-33,-25,-25,-25,-59,-30,-30,-25,-63,-48,-48,-48,-48,-27,-50,-8,-8,0,-8,-8,-14,-11,-11,-13,-5,-12,-11,-22,-79,-51,-81,-17,-475,-477,-464,-457,-483,-457,-479,-484,-460,-474,-488,-481,-716,-702,-771,-765,-763,-763,-725,-724,-851,-863,-843,-806,-5677,-5597,-2674,-1156,-5901,-5793,-29964,-29967,-6702,-959,-11656,-10493,-5653,-5109,-29962,-29966,-29971,-29973,-29980,-29981,-29980,-29978,-29972,0,-29981,-29982,-29982,-29981]} 1. d4 {[%emt 0:00:03]} d6 {[%emt 0:00:09]} 2. e4 {[%emt 0:00:07]} Nf6 {[%emt 0:00:06]} 3. Nc3 {[%emt 0:00:06]} e5 {[%emt 0:00:04]} 4. dxe5 {[%emt 0:00:06]} dxe5 {[%emt 0:00:05]} 5. Qxd8+ {[%emt 0:00:06]} Kxd8 {[%emt 0:00:04]} 6. Bc4 {[%emt 0:00:04]} Be6 {[%emt 0:00:07]} 7. Bxe6 {[%emt 0:00:08]} fxe6 {[%emt 0:00:03]} 8. f3 {[%emt 0:00:13]} Bc5 {[%emt 0:00:39]} 9. Na4 {[%emt 0:03:57][%cal Bc3a4,Ba4b2,Bb2d3][%mdl 32]} Bd6 {[%emt 0:03:40] B07: Pirc Defence: Miscellaneous Systems.} 10. Be3 {[%emt 0:00:52]} Nbd7 {[%emt 0:00:48] [#]} 11. b3 $146 {[%emt 0:27:06]} ({Predecessor:} 11. Nh3 Ke7 12. Ke2 b5 13. Nc3 a6 14. a4 c6 15. Rhd1 Bc5 16. Nf2 Rhc8 17. Bxc5+ Nxc5 {½-½ (69) Sergeev,V (2522)-Neuman,P (2454) Rakovnik 2011}) 11... b5 {[%emt 0:02:57] White is slightly better.} 12. Nb2 {[%emt 0:13:03]} Ba3 {[%emt 0:01:01]} 13. Nd3 {[%emt 0:05:47]} c5 {[%emt 0:05:53]} 14. c4 {[%emt 0:05:18]} bxc4 {[%emt 0:04:29]} 15. bxc4 {[%emt 0:00:06]} Rb8 {[%emt 0:00:04] Inhibits Rb1.} 16. Ne2 {[%emt 0:03:06]} Ne8 {[%emt 0:02:14]} 17. Rd1 {[%emt 0:15:53]} (17. Bc1 $14 Bxc1 18. Nexc1 (18. Rxc1 Nd6 $14)) 17... Kc7 {[%emt 0:03:28]} 18. Bc1 {[%emt 0:09:33]} Bb4+ {[%emt 0:06:05]} 19. Bd2 {[%emt 0:04:21]} (19. Nxb4 Rxb4 20. O-O Nd6 $15) 19... Bxd2+ {[%emt 0:05:43]} 20. Kxd2 {[%emt 0:00:43]} Nd6 {[%emt 0:00:09]} 21. Kc3 {[%emt 0:00:53]} Rb6 {[%emt 0:00:26]} 22. Nec1 {[%emt 0:01:18]} (22. Rb1 Ra6 $15) 22... Ra6 {[%emt 0:00:13]} 23. Rd2 {[%emt 0:02:32]} Ra4 {[%emt 0:05:51]} 24. Nb2 {[%emt 0:00:38]} Ra3+ {[%emt 0:00:07]} 25. Nb3 {[%emt 0:00:56]} (25. Kc2 $1 $11) 25... Rxa2 {[%emt 0:02:34] Dancing on a razor blade. Black is more active.} ({Black should play} 25... Rb8 $17 26. Nd1 (26. Rhd1 Rb6 $17) 26... Rb4) 26. Rhd1 $11 {[%emt 0:03:17]} Ra6 {[%emt 0:00:25]} 27. Nd3 {[%emt 0:02:04]} Nb7 {[%emt 0:09:56]} 28. Nf2 {[%emt 0:00:56]} (28. Nf4 $5 Nb8 29. Nh3 $11) 28... Rd8 {[%emt 0:00:43]} 29. Nd3 {[%emt 0:01:15]} Ra3 {[%emt 0:12:08]} 30. Kc2 {[%emt 0:00:29]} Ra2+ {[%emt 0:03:15]} 31. Kc3 {[%emt 0:00:18]} Rxd2 {[%emt 0:00:22]} (31... Ra4 {with more complications.} 32. h4 h6 33. Nb2 Ra3) 32. Rxd2 {[%emt 0:00:06]} a5 {[%emt 0:00:06]} 33. Ra2 {[%emt 0:00:43]} Ra8 {[%emt 0:00:14]} 34. Nb2 {[%emt 0:00:51]} Kc6 {[%emt 0:01:32]} 35. Ra1 {[%emt 0:00:24]} h5 {[%emt 0:00:36]} 36. h4 {[%emt 0:00:38]} Nb6 {[%emt 0:01:59]} 37. Nd3 {[%emt 0:00:29]} a4 {[%emt 0:00:26]} 38. Nd2 {[%emt 0:00:24]} Kd6 {[%emt 0:00:36]} 39. Nb1 {[%emt 0:00:28]} Na5 {[%emt 0:03:53]} 40. Na3 {[%emt 0:00:12]} Nb3 {[%emt 0:00:15]} 41. Nb5+ {[%emt 0:06:26]} Ke7 {[%emt 0:00:21]} 42. Ra3 {[%emt 0:03:16]} (42. Ra2 $11 {remains equal.}) 42... Kf6 {[%emt 0:01:48]} (42... g5 $5 43. Nxe5 (43. hxg5 Rg8 $15) 43... gxh4 44. Ng6+ Kf7 $17) 43. g4 {[%emt 0:06:57]} Rd8 {[%emt 0:18:17]} (43... hxg4 $17 44. fxg4 Rd8) 44. Na7 $2 {[%emt 0:08:15][%mdl 8192] Black keeps a firm grip on the game.} (44. g5+ $11 Ke7 45. Nxe5) 44... hxg4 $19 {[%emt 0:05:09]} 45. fxg4 {[%emt 0:00:06] [#]} Rd4 $1 {[%emt 0:00:05]} 46. g5+ {[%emt 0:01:37] [#]} Kg6 $1 {[%emt 0:00:02]} 47. Nxe5+ {[%emt 0:01:14]} Kh5 {[%emt 0:00:03]} 48. Nac6 {[%emt 0:04:02]} Rxe4 {[%emt 0:00:09]} 49. Ra2 {[%emt 0:01:58]} Re3+ {[%emt 0:00:05]} ({Avoid the trap} 49... Rxh4 $2 50. Rg2 $19) 50. Kb2 {[%emt 0:00:27]} (50. Kc2 $142) 50... Kxh4 {[%emt 0:03:40]} 51. g6 {[%emt 0:00:02]} Kg5 {[%emt 0:00:14]} 52. Kb1 {[%emt 0:00:48]} Re1+ {[%emt 0:00:22]} 53. Kb2 {[%emt 0:00:15]} Kf6 {[%emt 0:01:00]} 54. Ka3 {[%emt 0:01:06]} Rxe5 {[%emt 0:01:39]} 55. Nxe5 {[%emt 0:00:04]} Kxe5 {[%emt 0:00:04]} 56. Rf2 {[%emt 0:00:16]} Nd4 {[%emt 0:00:06]} 57. Rf7 {[%emt 0:00:23]} Nf5 {[%emt 0:00:07]} 58. Rb7 {[%emt 0:00:23]} Nxc4+ {[%emt 0:00:33]} 59. Kxa4 {[%emt 0:00:10]} Kd5 {[%emt 0:00:28]} 60. Rb1 {[%emt 0:00:42]} Nd4 {[%emt 0:01:09] White must now prevent ...Nd6.} 61. Rb8 {[%emt 0:01:03]} Ne5 {[%emt 0:00:24] ( -> ...c4)} 62. Rd8+ {[%emt 0:01:07]} Kc4 {[%emt 0:00:19]} 63. Rg8 {[%emt 0:00:16]} Nxg6 {[%emt 0:00:40]} 64. Rxg7 {[%emt 0:00:04]} Ne5 {[%emt 0:00:14]} 65. Re7 {[%emt 0:00:25]} Kd3 {[%emt 0:00:20]} 66. Rc7 {[%emt 0:00:40]} Nec6 {[%emt 0:00:25]} 67. Rh7 {[%emt 0:00:48]} Ne5 $2 {[%emt 0:00:25]} (67... c4 {mates} 68. Rh3+ Ke4 69. Rh5 e5 70. Rh3 Kd5 71. Rh8 c3 72. Rh2 c2 73. Rh1 Kc4 74. Ka3 Nb4 75. Ka4 Nd3 76. Ka5 c1=Q 77. Rxc1+ Nxc1 78. Kb6 e4 79. Kc7 e3 80. Kd7 e2 81. Ke7 e1=Q+ 82. Kf6 Qe6+ 83. Kg5 Nd3 84. Kh4 Qg8 85. Kh5 Nf4+ 86. Kh6 Qg6#) 68. Rh3+ $2 {[%emt 0:00:43][%mdl 8192]} (68. Rc7 $11) 68... Nef3 {[%emt 0:00:06]} 69. Ka3 {[%emt 0:00:19]} e5 {[%emt 0:33:21] Weighted Error Value: White=0.67/Black=0.08 (flawless)} 0-1

[Event "1st Serbian League 2022"]
[Site "Vrnjacka Banja"]
[Date "2022.09.26"]
[Round "7.30"]
[White "Perunovic, Miodrag"]
[Black "Radivojevic, Milan R"]
[Result "1-0"]
[ECO "B11"]
[WhiteElo "2413"]
[BlackElo "2172"]
[Annotator "ChessBase"]
[PlyCount "95"]
[EventDate "2022.09.20"]
[EventType "team-tourn"]
[EventCountry "SRB"]
[SourceTitle "playchess.com"]
[Source "ChessBase"]
[SourceQuality "1"]
[TimeControl "40/5400+30:1800+30"]

1. e4 {[%emt 0:00:04]} c6 {[%emt 0:00:20]} 2. Nc3 {[%emt 0:00:09]} d5 {[%emt 0:00:08]} 3. Nf3 {[%emt 0:00:03]} Bg4 {[%emt 0:00:52]} 4. h3 {[%emt 0:00:02]} Bxf3 {[%emt 0:00:13]} 5. Qxf3 {[%emt 0:00:09]} e6 {[%emt 0:00:11]} 6. d3 {[%emt 0:00:05]} Nd7 {[%emt 0:01:38]} 7. Bd2 {[%emt 0:00:06]} Ngf6 {[%emt 0:01:15]} 8. O-O-O {[%emt 0:00:06]} Qc7 {[%emt 0:03:54]} 9. g4 {[%emt 0:00:17]} g6 {[%emt 0:08:46]} 10. h4 {[%emt 0:09:53]} h5 {[%emt 0:02:12]} 11. g5 {[%emt 0:00:48]} Ng4 {[%emt 0:00:12]} 12. Bh3 {[%emt 0:00:16]} Bb4 {[%emt 0:20:48]} 13. Bxg4 {[%emt 0:01:49]} hxg4 {[%emt 0:02:12]} 14. Qxg4 {[%emt 0:00:03]} d4 {[%emt 0:00:39]} 15. Nb1 {[%emt 0:00:17]} Bxd2+ {[%emt 0:03:59]} 16. Nxd2 {[%emt 0:00:02]} O-O-O {[%emt 0:00:05]} 17. f4 {[%emt 0:00:12]} Kb8 {[%emt 0:03:10]} 18. Kb1 {[%emt 0:00:31]} c5 {[%emt 0:02:49]} 19. Rdf1 {[%emt 0:04:25]} b5 {[%emt 0:03:05]} 20. h5 {[%emt 0:00:30]} gxh5 {[%emt 0:01:56]} 21. Rxh5 {[%emt 0:00:01]} c4 {[%emt 0:00:08]} 22. Rxh8 {[%emt 0:05:34]} Rxh8 {[%emt 0:01:00]} 23. Qg1 {[%emt 0:00:01]} cxd3 {[%emt 0:04:24]} 24. cxd3 {[%emt 0:00:14]} Rc8 {[%emt 0:00:10]} 25. Rc1 {[%emt 0:00:21]} Qxf4 {[%emt 0:00:18]} 26. Qxd4 {[%emt 0:02:25]} Rxc1+ {[%emt 0:02:19]} 27. Kxc1 {[%emt 0:00:02]} Ne5 {[%emt 0:04:46]} 28. Kc2 {[%emt 0:00:54]} Nf3 {[%emt 0:06:45]} 29. Nxf3 {[%emt 0:01:12]} Qxf3 {[%emt 0:00:17]} 30. Qe5+ {[%emt 0:00:01]} Kc8 {[%emt 0:00:54]} 31. Qc5+ {[%emt 0:01:21]} Kd8 {[%emt 0:00:45]} 32. Qd6+ {[%emt 0:00:22]} Kc8 {[%emt 0:00:24]} 33. Qc6+ {[%emt 0:00:01]} Kd8 {[%emt 0:02:30]} 34. Qa8+ {[%emt 0:00:03]} Kc7 {[%emt 0:00:49]} 35. Qxa7+ {[%emt 0:00:02]} Kc6 {[%emt 0:00:01]} 36. Kc3 {[%emt 0:00:13]} Qf4 {[%emt 0:07:53]} 37. Qa6+ {[%emt 0:00:55]} Kc7 {[%emt 0:01:35]} 38. Qxb5 {[%emt 0:00:13]} e5 {[%emt 0:01:38]} 39. Qc5+ {[%emt 0:00:38]} Kb7 {[%emt 0:00:18]} 40. Qg1 {[%emt 0:00:10]} Qh4 {[%emt 0:06:34]} 41. a4 {[%emt 0:30:20]} Qh8 {[%emt 0:31:35]} 42. a5 {[%emt 0:01:55]} Qc8+ {[%emt 0:01:55]} 43. Kb4 {[%emt 0:00:03]} Qc2 {[%emt 0:00:41]} 44. Qb6+ {[%emt 0:00:06]} Ka8 {[%emt 0:00:01]} 45. Qd8+ {[%emt 0:00:02]} Ka7 {[%emt 0:01:01]} 46. Qe7+ {[%emt 0:00:03]} Ka6 {[%emt 0:01:19]} 47. Qf6+ {[%emt 0:00:03]} Kb7 {[%emt 0:01:11]} 48. Qxf7+ {[%emt 0:00:08]} 1-0